Cogmind - Beta 17.1 @@@ ROGUE MODE // 2026.09.17 @ 21:17:36 Player: st-3v1 Result: Destroyed by G-67 Veteran with Plasma Rifle Performance ------------- Evolutions (5) 2500 Regions Visited (16) 3200 Robots Destroyed (350) 1750 Value Destroyed (16100) 16100 Prototype IDs (33) 660 Alien Tech Used (0) 0 Bonus (11555) 11555 TOTAL SCORE: 35765 Bonus ------- High Alert Combat Kills 6197 Follower Combat Kills 1959 Entered Garrisons 1000 Used RIF Installer 2500 Aligned with FarCom 300 Friendly Fire -401 Cogmind --------- Core Integrity 0/1000 Matter 300/300 Energy 99/100 System Corruption 7% Temperature Cool (0) Movement Core (50) Location -5/Extension Parts ------- > --- POWER (1) -------- (None) > --- PROPULSION (6) --- (None) > --- UTILITY (4) ------ (None) > --- WEAPON (6) ------- (None) > --- INVENTORY (5) ---- YOLO Cannon KE Penetrator Bore Cannon Peak State ------------ > --- POWER ------------ Compact Particle Reactor > --- PROPULSION ------- Heavy Treads Heavy Treads Improved Heavy Treads > --- UTILITY ---------- Advanced Cooling System Advanced Cooling System Huge Storage Unit Improved Weapon Cycler > --- WEAPON ----------- Heavy Proton Cannon Heavy Flak Cannon Heavy Flak Cannon Heavy Flak Cannon Heavy Flak Cannon Heavy Flak Cannon > --- INVENTORY -------- Light Quantum Reactor Armored Medium Treads Heavy Treads Compact Matter Pod Improved Weapon Cycler Relay Coupler [Sentry] Relay Coupler [Hunter] Relay Coupler [Heavy] Long-range Tractor Beam Advanced Trap Extractor Improved Field Recycling Unit YOLO Cannon Hypervelocity Gauss Rifle Hypervelocity Gauss Rifle Hypervelocity Coil Gun Railgun Hypervelocity Gauss Cannon Hypervelocity Gauss Cannon Hypervelocity Gauss Cannon Hardcell Cannon Heavy Rocket Launcher Improved Datajack Remote Datajack [Rating: 112] Favorites ----------- Power Compact Particle Reactor Engine Heavy Deuterium Engine Reactor Compact Particle Reactor Propulsion Light Treads Treads Light Treads Utility Advanced Cooling System Device Advanced Cooling System Storage Large Storage Unit Processor Core Analyzer Hackware Relay Coupler [Sentry] Protection Improved Utility Shielding Weapon Hypervelocity Gauss Rifle Energy Gun PD Laser Energy Cannon Heavy Proton Cannon Ballistic Gun Hypervelocity Gauss Rifle Ballistic Cannon Heavy Flak Cannon Launcher Heavy Rocket Launcher Special Weapon Remote Datajack Slashing Weapon Phasing Sabre Piercing Weapon Makeshift Spear Special Melee Weapon Improved Datajack Build | -11 -10 -10 -10 -9 -8 -8 -7 -7 -7 -7 -6 -6 -6 -6 -5 -5 ------- Run | Yrd Mat Min Exi Min Mat Gar Fac Gar Fac Gar Fac Gar Fac Gar Fac Ext Slots Evolved 10 | . . . . . 4 . 2 . . . 2 . . . 2 . Power . | . . . . . . . . . . . . . . . . . Propulsion 4 | . . . . . 2 . . . . . . . . . 2 . Utility 2 | . . . . . . . 1 . . . 1 . . . . . Weapon 4 | . . . . . 2 . 1 . . . 1 . . . . . Parts Attached 156 | 7 6 1 . 1 7 9 9 8 5 11 1 6 24 26 11 24 Power 8 | 1 1 . . . 1 1 2 . . . . 1 . 1 . . Engine 6 | 1 1 . . . 1 1 2 . . . . . . . . . Core . | . . . . . . . . . . . . . . . . . Reactor 2 | . . . . . . . . . . . . 1 . 1 . . Propulsion 37 | 2 1 . . . 3 5 3 3 1 3 . . 3 3 2 8 Treads 37 | 2 1 . . . 3 5 3 3 1 3 . . 3 3 2 8 Leg . | . . . . . . . . . . . . . . . . . Wheel . | . . . . . . . . . . . . . . . . . Hover . | . . . . . . . . . . . . . . . . . Flight . | . . . . . . . . . . . . . . . . . Utility 36 | 2 2 . . 1 1 . 1 2 1 4 1 2 3 5 4 7 Device 24 | 1 . . . 1 1 . 1 2 . 3 1 1 1 4 4 4 Storage 7 | 1 2 . . . . . . . 1 1 . . 1 . . 1 Processor 2 | . . . . . . . . . . . . 1 1 . . . Hackware 2 | . . . . . . . . . . . . . . 1 . 1 Protection 1 | . . . . . . . . . . . . . . . . 1 Artifact . | . . . . . . . . . . . . . . . . . Weapon 75 | 2 2 1 . . 2 3 3 3 3 4 . 3 18 17 5 9 Energy Gun 2 | . . . . . . . . . . 1 . . . . 1 . Energy Cannon 2 | . . . . . . 1 . . . . . . . . 1 . Ballistic Gun 49 | 2 . 1 . . 2 1 3 3 3 2 . 3 18 7 . 4 Ballistic Cannon 13 | . . . . . . . . . . 1 . . . 9 1 2 Launcher 3 | . 2 . . . . . . . . . . . . . 1 . Special Weapon 1 | . . . . . . . . . . . . . . 1 . . Impact Weapon . | . . . . . . . . . . . . . . . . . Slashing Weapon 3 | . . . . . . . . . . . . . . . . 3 Piercing Weapon 1 | . . . . . . 1 . . . . . . . . . . Special Melee Weapon 1 | . . . . . . . . . . . . . . . 1 . Unidentified Prototypes 9 | . . . . 1 . . 1 . 2 1 . . 2 . 2 . Corrupted Parts 3 | . . . . . . . . . . 1 . 2 . . . . System Corruption 14 | . . . . . . . . . . 11 . 3 . . . . Parts Lost 68 | . 1 . . 1 . . . . . 1 . 1 4 11 4 45 Power 4 | . . . . . . . . . . . . . . 1 . 3 Propulsion 17 | . 1 . . . . . . . . . . . 2 2 . 12 Utility 16 | . . . . . . . . . . 1 . 1 . 2 . 12 Weapon 31 | . . . . 1 . . . . . . . . 2 6 4 18 Highest Loss Streak 31 | . 1 . . 1 . . . . . 1 . 1 2 5 3 31 To Critical Strikes . | . . . . . . . . . . . . . . . . . Average Backups 15 | . 4 10 12 13 13 13 13 14 13 13 13 14 16 21 22 16 Power . | . . 1 2 1 1 1 . . . . . . 1 1 1 1 Propulsion 2 | . 1 3 4 4 2 3 4 4 4 2 3 3 2 3 2 1 Utility 4 | . . . 1 2 5 5 5 6 5 4 4 3 2 5 7 7 Weapon 6 | . 3 4 5 6 4 4 3 3 3 5 6 7 10 11 10 5 Tool/Special . | . . . . . . . . . . . . . . . . . Unused Backups 27 | . . . 1 . 1 2 2 1 1 6 . . 5 6 . 2 Power 3 | . . . 1 . . . 1 . . 1 . . . . . . Propulsion 2 | . . . . . . . . . . 2 . . . . . . Utility 13 | . . . . . 1 2 1 1 1 3 . . 1 3 . . Weapon 9 | . . . . . . . . . . . . . 4 3 . 2 Tool/Special . | . . . . . . . . . . . . . . . . . Average Slot Usage (%) 86 | . 99 100 100 99 89 99 97 100 100 76 72 73 83 83 81 70 Engine 4 | . 14 14 14 14 9 9 6 7 7 7 6 3 . . . . Reactor 2 | . . . . . . . . . . . . 2 6 5 5 4 Treads 20 | . 27 28 28 28 34 36 29 30 30 16 13 13 12 13 17 16 Device 14 | . 14 14 14 14 9 9 15 15 15 14 19 16 12 16 17 14 Storage 7 | . 14 14 14 14 9 9 7 7 7 7 6 6 6 6 5 4 Processor 1 | . . . . . . . . . . . . 2 6 1 . . Energy Gun 1 | . . . . . . . . . . 4 6 6 1 . . 2 Ballistic Gun 25 | . 27 25 28 27 27 35 35 36 38 24 19 19 35 21 . 11 Ballistic Cannon 4 | . . . . . . . . . . . . . . 16 26 5 Peak Build Rating 112 | 7 7 8 10 18 23 44 38 43 45 88 96 101 104 100 112 108 Average Rating 66 | 5 6 7 8 10 18 27 33 39 43 77 95 97 94 93 106 79 On Entrance 46 | . 7 7 8 10 10 23 28 38 43 45 88 96 101 95 96 93 Avg Prop Armor Cover (%) 7 | . . . . . . . . . . . . . . . . 7 Naked Turns 22 | . . . . . . . . . . . . . . . . 22 Heaviest Build 155 | 13 28 30 28 28 35 58 54 63 65 74 80 80 131 155 154 140 Greatest Support 215 | 40 40 40 40 40 80 80 80 80 80 150 150 150 150 150 215 210 Greatest Overweight (x) 1 | . . . . . . . . . . . . . 1 1 . 1 Average Overweight (x) . | . . . . . . . . . . . . . . . . . Largest Inventory Capacity 25 | 8 15 15 15 15 15 15 15 15 15 20 20 20 25 25 25 25 Average Capacity 19 | 5 12 15 15 15 15 15 15 15 15 18 20 20 20 25 25 24 Most Carried 25 | . 8 13 13 15 15 15 15 15 15 20 19 20 22 25 25 23 Average Carried 17 | . 4 10 12 14 14 14 14 15 14 17 18 19 19 23 24 18 Final Capacity 25 | 8 15 15 15 15 15 15 15 15 15 20 20 20 25 25 25 5 Final Carried 25 | . 8 13 13 15 15 15 15 15 15 20 18 20 22 25 24 4 Class Distribution -------------------- 24% | Scavenger-Executioner 21% | Scavenger-Skirmisher 18% | Mutant 16% | Executioner 7% | Scavenger-Tank 4% | Commander-Executioner Dominant Class ---------------- Mutant | -10/Materials Mutant | -10/Mines Mutant | -10/Exiles Mutant | -9/Mines Skirmisher | -8/Materials Scavenger-Skirmisher | -8/Garrison Scavenger-Skirmisher | -7/Factory Scavenger-Skirmisher | -7/Garrison Scavenger-Skirmisher | -7/Factory Scavenger-Tank | -7/Garrison Scavenger-Executioner | -6/Factory Scavenger-Executioner | -6/Garrison Scavenger-Executioner | -6/Factory Executioner | -6/Garrison Executioner | -5/Factory Scavenger-Executioner | -5/Extension Resources | -11 -10 -10 -10 -9 -8 -8 -7 -7 -7 -7 -6 -6 -6 -6 -5 -5 ----------- Run | Yrd Mat Min Exi Min Mat Gar Fac Gar Fac Gar Fac Gar Fac Gar Fac Ext Matter Collected 12167 | 238 216 158 . 32 113 678 357 686 708 1164 . 525 2221 2240 827 2004 Remotely 533 | . . . . . . . . . . . . . . . 223 310 Salvage Created 16926 | 27 395 141 . . 74 1111 472 544 1008 2100 . 1132 4229 2284 849 2560 Parts 842 | 6 35 10 . . 8 71 29 25 54 89 . 56 222 104 39 94 Haulers Intercepted 11 | . 2 . . . . . 2 . 2 . . . 4 . . 1 Recyclers Shooed 9 | . 2 . . . . . . . 1 . . . 3 . 3 . Parts Field Recycled 206 | . . . . . . . . 18 13 . . . 71 50 15 39 Retrieved Matter 2447 | . . . . . . . . 145 272 . . . 928 505 336 261 Parts Self-Destructed . | . . . . . . . . . . . . . . . . . Prevented . | . . . . . . . . . . . . . . . . . Parts Restored . | . . . . . . . . . . . . . . . . . Kills | -11 -10 -10 -10 -9 -8 -8 -7 -7 -7 -7 -6 -6 -6 -6 -5 -5 ------- Run | Yrd Mat Min Exi Min Mat Gar Fac Gar Fac Gar Fac Gar Fac Gar Fac Ext Combat Hostiles Destroyed 289 | . 15 5 . . 1 27 8 11 17 30 . 26 57 43 22 27 Melee 10 | . . . . . . . . . . . . . . 1 1 8 Guns 228 | . 13 2 . . 1 27 6 11 17 30 . 26 56 25 . 14 Cannons 33 | . . . . . . . . . . . . . . 17 11 5 AOE 18 | . 2 3 . . . . 2 . . . . . 1 . 10 . Classes Destroyed 21 | 1 4 1 . . 1 1 2 1 2 . . 1 3 1 1 2 Worker 14 | . . 1 . . . . . . . . . . 12 . . 1 Builder 6 | . . . . . . . 1 . 1 . . . 1 . 1 2 Tunneler 2 | 1 . . . . . . 1 . . . . . . . . . Hauler 11 | . 2 . . . . . 2 . 2 . . . 4 . . 1 Recycler 11 | . . . . . . . 1 . 2 . . . 2 . 2 4 Mechanic 1 | . . . . . . . . . . . . . . . . 1 Operator 3 | . . . . . . . . . . . . . 1 . 1 1 Watcher 10 | . 1 . . . 1 . 4 1 . . . . 2 . . 1 Swarmer 60 | . 12 3 . . . 7 7 . 3 7 . 8 8 1 1 3 Cutter 3 | . . . . . . . . . . . . . . 3 . . Saboteur 1 | . . . . . . . . . . . . . . . 1 . Grunt 131 | . 3 2 . . . 13 . 8 10 16 . 11 26 17 10 15 Brawler 8 | . . . . . . 3 . . . . . . 3 . 1 1 Duelist 13 | . . . . . . . . . . . . 3 2 4 3 1 Protector 2 | . . . . . . . . . . . . . 1 . . 1 Sentry 30 | . . . . . 1 4 1 2 1 4 . 3 7 3 1 3 Demolisher 1 | . . . . . . . . . . . . . . . . 1 Specialist 11 | . . . . . . . . 1 1 . . . . 8 . 1 Hunter 7 | . . . . . . . . . 1 1 . . 3 1 . 1 Programmer 22 | . . . . . . . . . 2 2 . 1 6 6 5 . Behemoth 1 | . . . . . . . . . . . . . 1 . . . Thug 2 | . . . . . . . . . . . . . . . . 2 Best Kill Streak 11 | 1 8 2 . . 2 3 6 3 5 6 . 8 11 10 9 8 Combat Bots Only 10 | . 8 2 . . 1 3 4 3 4 6 . 8 9 10 7 8 Max Kills in Single Turn 4 | 1 2 2 . . 1 2 4 1 2 2 . 2 3 3 2 2 Gunslinging 1 | . . . . . . 1 1 . 1 1 . 1 1 1 . . Exploded 2 | . 1 2 . . . . 2 . . . . . 1 . 2 . Melee 1 | . . . . . . . . . . . . . . 1 1 1 Uniques/NPCs Destroyed . | . . . . . . . . . . . . . . . . . Combat | -11 -10 -10 -10 -9 -8 -8 -7 -7 -7 -7 -6 -6 -6 -6 -5 -5 -------- Run | Yrd Mat Min Exi Min Mat Gar Fac Gar Fac Gar Fac Gar Fac Gar Fac Ext Hostile Shots Fired 1430 | . 75 17 . 4 2 83 25 34 29 123 . 67 205 345 112 309 Missed 401 | . 25 2 . 1 1 19 11 12 9 27 . 19 56 106 27 86 Hits 1029 | . 50 15 . 3 1 64 14 22 20 96 . 48 149 239 85 223 Melee 17 | . . . . . . . . . . . . 3 4 1 2 7 Projectile 1012 | . 50 15 . 3 1 64 14 22 20 96 . 45 145 238 83 216 AOE 3 | . . . . . . . . . 2 . . . . . . 1 Critical Strikes 37 | . . . . . . 1 . . 1 1 . 2 8 10 4 10 Part Disruptions 1 | . . . . . . . . . . . . . . 1 . . Damage Taken 16224 | . 433 185 . 42 16 762 211 382 371 1161 . 421 2556 3556 1778 4350 Core 2081 | . 48 8 . . . 61 46 35 39 49 . 30 144 599 60 962 Absorbed by Shields 881 | . . . . . . . . 12 . 24 . 382 . 424 . 39 Reduced by Siege Mode 418 | . . . . . . . . . . 84 . 24 92 207 6 5 Regen/Repaired (Parts) 490 | . . . . . . . . . . . 115 . 375 . . . Core Remaining (%) 69 | 100 . . . 77 . 88 . . . 75 . . . 9 . . Volleys Fired 730 | 1 55 27 . 3 5 70 20 38 31 72 . 34 108 113 48 105 Largest 6 | 2 2 2 . 2 4 4 5 5 5 5 . 3 6 6 5 5 Hottest 264 | 40 40 40 . 40 85 93 129 137 145 142 . 86 190 264 225 227 Shots Fired 2569 | 2 107 47 . 6 17 253 95 146 151 232 . 138 554 429 114 278 Gun 2218 | 2 104 40 . 6 17 253 95 146 151 232 . 138 554 301 6 173 Cannon 311 | . . . . . . . . . . . . . . 121 93 97 Launcher 25 | . 3 7 . . . . . . . . . . . . 15 . Special 15 | . . . . . . . . . . . . . . 7 . 8 Kinetic 2416 | 2 104 40 . 6 17 253 95 146 151 213 . 103 539 422 93 232 Thermal 103 | . . . . . . . . . . 19 . 35 15 . 6 28 Explosive 25 | . 3 7 . . . . . . . . . . . . 15 . Electromagnetic 10 | . . . . . . . . . . . . . . . . 10 Robot Hit Streak 43 | 1 8 6 . 2 6 18 6 9 11 39 . 13 43 28 10 18 Robot Miss Streak 16 | 1 5 2 . 2 2 4 7 4 8 10 . 6 9 16 4 3 Penetration Max 3 | . . . . . . 1 . 1 1 1 . 1 2 2 . 3 Secondary Targets 50 | . . . . . . 8 2 . 4 7 . 6 12 9 . 2 Max Gunslinging Chain 2 | . . . . . . 2 1 . 1 1 . 1 2 1 . 1 Autonomous 73 | . . . . . . . . . . 19 . 39 15 . . . Shots Hit Robots 1684 | 1 57 32 . 3 12 149 49 88 92 189 . 102 326 290 84 210 Core Hits 1150 | 1 32 14 . 1 9 63 28 46 75 121 . 100 262 207 91 100 Critical Kills 81 | . . . . . . 3 1 . 1 . . . 35 20 . 21 Critical Parts Destroyed 127 | . 1 2 . . . 1 . 2 . 4 . 1 35 37 6 38 Critical Strikes 233 | . 1 2 . . . 4 1 2 1 5 . 1 73 69 7 67 Destroy 228 | . 1 2 . . . 4 1 2 1 4 . 1 73 69 6 64 Blast 1 | . . . . . . . . . . . . . . . 1 . Corrupt 1 | . . . . . . . . . . . . . . . . 1 Sever 2 | . . . . . . . . . . . . . . . . 2 Impale 1 | . . . . . . . . . . 1 . . . . . . Melee Attacks 110 | . . . . . . 1 . 9 . 15 . 7 17 . 13 48 Impact . | . . . . . . . . . . . . . . . . . Slashing 21 | . . . . . . . . . . . . . . . . 21 Piercing 76 | . . . . . . 1 . 9 . 15 . 7 17 . 13 14 Sneak Attacks 15 | . . . . . . . . . . . . . . . 2 13 Combat Hostiles . | . . . . . . . . . . . . . . . . . Follow-up Attacks 9 | . . . . . . . . . . . . . . . . 9 Damage Inflicted 34111 | 15 706 390 . 23 129 1981 1377 1720 1906 4615 . 3053 6077 4147 3791 4181 Guns 23633 | 10 490 217 . 23 129 1981 748 1720 1891 3896 . 3053 5573 1841 . 2061 Cannons 5038 | . . . . . . . . . . . . . . 2165 1602 1271 Explosions 3414 | . 215 173 . . . . 629 . . . . . 413 . 1984 . Melee 1678 | . . . . . . . . . . 719 . . . . 173 786 Ramming 348 | 5 1 . . . . . . . 15 . . . 91 141 32 63 Kinetic 25200 | 10 490 217 . 23 129 1981 748 1720 1891 3088 . 1628 5086 4006 1602 2581 Thermal 3246 | . . . . . . . . . . 808 . 1425 487 . . 526 Explosive 3414 | . 215 173 . . . . 629 . . . . . 413 . 1984 . Electromagnetic 225 | . . . . . . . . . . . . . . . . 225 Impact . | . . . . . . . . . . . . . . . . . Slashing 570 | . . . . . . . . . . . . . . . . 570 Piercing 1108 | . . . . . . . . . . 719 . . . . 173 216 Highest Corruption 12 | . . . . . . . . . . 12 . 3 4 4 4 8 Average Corruption 4 | . . . . . . . . . . 11 . 2 1 2 2 7 Corruption Purged 5 | . . . . . . . . . . . . . 4 . . 1 Corruption Blocked . | . . . . . . . . . . . . . . . . . Effects 238 | . . . . . . . . . . 53 . . 44 46 10 85 Message Errors 55 | . . . . . . . . . . 10 . . 12 15 2 16 Matter Fused 52 | . . . . . . . . . . 9 . . 8 8 2 25 Heat Flow Errors 31 | . . . . . . . . . . 8 . . 7 7 2 7 Energy Discharges 32 | . . . . . . . . . . 14 . . 4 6 . 8 Parts Rejected 1 | . . . . . . . . . . . . . 1 . . . Parts Fused 3 | . . . . . . . . . . . . . . 1 2 . Data Loss (minor) 33 | . . . . . . . . . . 5 . . 6 7 1 14 Data Loss (major) 11 | . . . . . . . . . . 3 . . 2 1 . 5 Misfires 12 | . . . . . . . . . . 2 . . 1 1 1 7 Alerts 6 | . . . . . . . . . . 2 . . 2 . . 2 Weapon Failures 2 | . . . . . . . . . . . . . 1 . . 1 Overload Shots 6 | . . . . . . . . . . . . . . . 6 . Overflow Damage 133 | . 10 2 . . . . 21 . . . . . . . 93 7 Projectiles 16 | . . . . . . . . . . . . . . . 16 . Explosions 98 | . 10 2 . . . . 21 . . . . . . . 65 . Melee 19 | . . . . . . . . . . . . . . . 12 7 Knockbacks 75 | . . . . . . . . . . . . . 1 28 28 18 Impact 3 | . . . . . . . . . . . . . 1 . 1 1 Kinetic 67 | . . . . . . . . . . . . . . 25 27 15 Secondary 5 | . . . . . . . . . . . . . . 3 . 2 Self-Inflicted Damage 194 | . 32 7 . . . . . . . . . . 73 . 76 6 Shots 5 | . 1 1 . . . . . . . . . . 1 . 2 . Rammed 41 | 1 1 . . . . . . . 1 . . . 8 15 2 13 Targets Rammed 44 | 1 1 . . . . . . . 1 . . . 9 16 3 13 Kicked . | . . . . . . . . . . . . . . . . . Crushed 3 | . . . . . . . . . . . . . 1 1 1 . Highest Temperature 886 | . 6 18 . . 53 278 . 7 18 225 . 394 327 886 293 211 Average Temperature 105 | . 6 9 . . 20 90 . 3 5 74 . 130 94 191 96 29 Received Heat Transfer 4258 | . 36 87 . 18 9 270 . 141 102 309 . 98 325 1458 437 968 Effects 41 | . . . . . . . . . . . . 3 3 32 1 2 Shutdowns 2 | . . . . . . . . . . . . . 1 1 . . Energy Bleed 8 | . . . . . . . . . . . . 1 . 6 1 . Interference 12 | . . . . . . . . . . . . 2 2 6 . 2 Matter Decay 2 | . . . . . . . . . . . . . . 2 . . Short Circuit 2 | . . . . . . . . . . . . . . 2 . . Damage (minor) 4 | . . . . . . . . . . . . . . 4 . . Damage (major) 8 | . . . . . . . . . . . . . . 8 . . Damage (core) 3 | . . . . . . . . . . . . . . 3 . . Siege Activations 34 | . . . . . . . . . . 7 . 5 11 8 2 1 Total Turns 718 | . . . . . . . . . . 80 . 107 117 333 35 46 Longest Duration 132 | . . . . . . . . . . 33 . 57 23 132 25 46 Martial Activations . | . . . . . . . . . . . . . . . . . Shielding Activations . | . . . . . . . . . . . . . . . . . Robots Disrupted . | . . . . . . . . . . . . . . . . . Combat Hostiles . | . . . . . . . . . . . . . . . . . Robots Corrupted 1 | . . . . . . . . . . . . . . . . 1 Combat Hostiles . | . . . . . . . . . . . . . . . . . Parts Fried 2 | . . . . . . . . . . . . . . . . 2 Impact Corruptions 1 | . . . . . . . . . . . . . . . . 1 Robots Melted . | . . . . . . . . . . . . . . . . . Combat Hostiles . | . . . . . . . . . . . . . . . . . Parts Melted 8 | . . . . . . . 1 . . 1 . 2 . . . 4 Heat Transferred 3225 | . . . . . . . . . . 750 . 1210 450 . . 815 Parts Sabotaged 2 | . . . . . . . . . . . . . . . 2 . Parts Stolen . | . . . . . . . . . . . . . . . . . Parts Stripped . | . . . . . . . . . . . . . . . . . Power Chain Reactions . | . . . . . . . . . . . . . . . . . Alert | -11 -10 -10 -10 -9 -8 -8 -7 -7 -7 -7 -6 -6 -6 -6 -5 -5 ------- Run | Yrd Mat Min Exi Min Mat Gar Fac Gar Fac Gar Fac Gar Fac Gar Fac Ext Maximum Alert Level 5 | . . . . . . 3 2 3 2 4 3 3 4 5 5 4 Low Security (%) 16 | 100 100 100 . 100 100 21 . . . . . . . . . . Level 1 4 | . . . . . . 26 52 16 1 . . . . . . . Level 2 24 | . . . . . . 31 47 48 98 18 60 45 51 . . 4 Level 3 28 | . . . . . . 20 . 34 . 40 39 54 37 14 . 88 Level 4 19 | . . . . . . . . . . 41 . . 11 42 90 7 Level 5 6 | . . . . . . . . . . . . . . 42 9 . High Security . | . . . . . . . . . . . . . . . . . Max Security . | . . . . . . . . . . . . . . . . . Peak Influence 2678 | 5 196 110 . . 44 973 510 959 632 1453 762 966 1264 2678 1750 1145 Initial 1405 | . . . . . . 15 510 295 503 428 762 420 506 877 1405 850 Average 804 | . 80 31 . . 10 454 391 626 537 980 682 698 736 1686 1385 870 Influence Increases 11256 | 5 424 204 . . 82 1018 332 784 687 1075 9 556 1548 1921 1132 1479 Destroy 0b10 Robot/C 5605 | . 300 100 . . 40 660 180 395 375 450 . 420 885 690 405 705 Destroy 0b10 Robot/NC 318 | 5 15 5 . . 10 . 50 5 20 28 . . 92 8 24 56 Destroy Leader 788 | . 66 20 . . 14 20 52 20 92 40 . 24 228 48 72 92 Allied During Kill 515 | . . . . . 10 59 19 80 75 . . 4 7 11 66 184 Successful Hack 205 | . 23 . . . 8 14 . 14 34 . 9 40 14 22 9 18 Disable Machine 405 | . . 30 . . . . 15 . 48 24 . 12 108 . 156 12 Anti-Garrison Action 1903 | . . . . . . 250 . 225 . 451 . . . 977 . . Destroy Structure 671 | . 5 34 . . . 15 16 45 7 46 . 8 94 45 304 52 Partial Spotted 12 | . . . . . . . . . . . . . . . 12 . Lose Combat Pursuer 834 | . 15 15 . . . . . . 36 36 . 48 120 120 84 360 Influence Decreases 10313 | 5 424 135 69 . 58 69 883 247 1034 234 861 191 1261 496 2073 2273 Entered New Map 5176 | . . . 69 . . 9 463 127 456 184 691 181 460 376 1273 887 Time Decay 3637 | 5 414 135 . . 58 . 380 . 478 . 170 . 741 . 580 676 Lost Part 670 | . 10 . . . . . . . . 10 . 10 40 110 40 450 Lost Ally 830 | . . . . . . 60 40 120 100 40 . . 20 10 180 260 Squads Dispatched 61 | . 2 . . . 1 . 3 . 6 . 2 . 20 . 14 13 Investigation 9 | . 1 . . . . . . . 1 . 1 . 1 . 4 1 Extermination 12 | . . . . . . . 1 . 1 . 1 . 7 . 2 . Reinforcement 20 | . 1 . . . . . 1 . 3 . . . 8 . 2 5 Assault 18 | . . . . . . . 1 . 1 . . . 4 . 5 7 Garrison 2 | . . . . . 1 . . . . . . . . . 1 . Intercept . | . . . . . . . . . . . . . . . . . Searches Triggered . | . . . . . . . . . . . . . . . . . Construction Impeded 8 | . . . . . . . 1 . 1 . . . 3 . 1 2 Haulers Reinforced 4 | . . . . . . . . . 1 . . . 3 . . . Active Scanning Responses . | . . . . . . . . . . . . . . . . . Cargo Convoy Interrupts 1 | . . . . . . . . . . . . . . . 1 . Stealth | -11 -10 -10 -10 -9 -8 -8 -7 -7 -7 -7 -6 -6 -6 -6 -5 -5 --------- Run | Yrd Mat Min Exi Min Mat Gar Fac Gar Fac Gar Fac Gar Fac Gar Fac Ext Distress Signals 16 | . . . . . 1 . 1 . 5 . . . 4 . 2 3 Communications Jammed . | . . . . . . . . . . . . . . . . . Distress Signals . | . . . . . . . . . . . . . . . . . Times Spotted 491 | . 26 6 . 2 6 32 24 14 35 31 . 29 88 52 51 95 Peak Tracking Total 16 | . 6 3 . 2 2 5 5 3 7 6 . 5 10 8 14 16 Tactical Retreats 45 | . 1 1 . . . . . . 3 2 . 1 8 10 4 15 Traps | -11 -10 -10 -10 -9 -8 -8 -7 -7 -7 -7 -6 -6 -6 -6 -5 -5 ------- Run | Yrd Mat Min Exi Min Mat Gar Fac Gar Fac Gar Fac Gar Fac Gar Fac Ext Traps Triggered 19 | . . . . . . . 2 1 2 1 . . 3 5 1 4 Indirectly . | . . . . . . . . . . . . . . . . . Trap Hack Attempts . | . . . . . . . . . . . . . . . . . Triggered . | . . . . . . . . . . . . . . . . . Disarmed . | . . . . . . . . . . . . . . . . . Reprogrammed . | . . . . . . . . . . . . . . . . . Reused . | . . . . . . . . . . . . . . . . . Traps Extracted . | . . . . . . . . . . . . . . . . . Installed . | . . . . . . . . . . . . . . . . . Triggered . | . . . . . . . . . . . . . . . . . Machines | -11 -10 -10 -10 -9 -8 -8 -7 -7 -7 -7 -6 -6 -6 -6 -5 -5 ---------- Run | Yrd Mat Min Exi Min Mat Gar Fac Gar Fac Gar Fac Gar Fac Gar Fac Ext Machines Disabled 46 | . . 2 . . . 2 1 3 4 3 . 2 9 6 13 1 Max in Single Turn 2 | . . 2 . . . 1 1 1 1 1 . 1 2 1 1 1 Garrison Access 1 | . . . . . . . . . . . . . . . 1 . Garrison Relay 10 | . . . . . . 2 . 3 . 1 . . . 4 . . Machines Repaired . | . . . . . . . . . . . . . . . . . Machines Dismantled . | . . . . . . . . . . . . . . . . . Machines Sabotaged . | . . . . . . . . . . . . . . . . . Overloaded Fab Kills . | . . . . . . . . . . . . . . . . . Hacking | -11 -10 -10 -10 -9 -8 -8 -7 -7 -7 -7 -6 -6 -6 -6 -5 -5 --------- Run | Yrd Mat Min Exi Min Mat Gar Fac Gar Fac Gar Fac Gar Fac Gar Fac Ext Machines Accessed 59 | . 7 . 2 . 4 4 1 1 5 1 3 4 11 2 8 6 Terminals 37 | . 7 . . . 2 4 . 1 2 1 . 4 4 2 4 6 Fabricators 5 | . . . . . . . . . 1 . . . 3 . 1 . Repair Stations 5 | . . . . . . . . . . . 2 . 2 . 1 . Recycling Units . | . . . . . . . . . . . . . . . . . Scanalyzers 4 | . . . . . 1 . . . 1 . . . 1 . 1 . Garrison Access 6 | . . . . . 1 . 1 . 1 . 1 . 1 . 1 . Total Hacks 123 | . 18 . 2 . 9 7 1 2 9 2 8 7 24 2 20 12 Successful 62 | . 11 . 2 . 6 1 1 1 7 1 5 4 12 2 6 3 Failed 59 | . 7 . . . 3 6 . 1 2 1 3 3 11 . 13 9 Catastrophic 11 | . 1 . . . . 1 . . . 1 . . 3 . 3 2 Database Lockouts 2 | . . . . . . . . . . . . . 1 . 1 . Manual 36 | . 17 . 1 . 6 2 . . . 1 . . 4 . . 5 Terminals 76 | . 18 . . . 6 7 . 2 4 2 . 7 5 2 11 12 Fabricators 8 | . . . . . . . . . 2 . . . 5 . 1 . Repair Stations 18 | . . . . . . . . . . . 7 . 8 . 3 . Recycling Units . | . . . . . . . . . . . . . . . . . Scanalyzers 13 | . . . . . 2 . . . 2 . . . 5 . 4 . Garrison Access 6 | . . . . . 1 . 1 . 1 . 1 . 1 . 1 . Terminal Hacks 21 | . 3 . 2 . . 1 . 1 3 1 . 4 1 2 . 3 Record 1 | . . . 1 . . . . . . . . . . . . . Robot Analysis 2 | . 2 . . . . . . . . . . . . . . . Open Door 4 | . . . . . . . . . . . . 1 . . . 3 Open DSF 1 | . . . . . . . . . 1 . . . . . . . Branch Access Points 1 | . . . . . . . . . 1 . . . . . . . Emergency Access Points 3 | . . . . . . . . . 1 1 . . . 1 . . Terminal Index 1 | . 1 . . . . . . . . . . . . . . . Hauler Manifests 1 | . . . . . . . . . . . . . 1 . . . Garrison Registry 2 | . . . . . . . . 1 . . . 1 . . . . Patrol Navigation 3 | . . . . . . 1 . . . . . 1 . 1 . . Security Stations 1 | . . . . . . . . . . . . 1 . . . . Proto ID Catalog 1 | . . . 1 . . . . . . . . . . . . . Fabricator Hacks 5 | . . . . . . . . . 1 . . . 3 . 1 . Network Status 3 | . . . . . . . . . . . . . 2 . 1 . Build 2 | . . . . . . . . . 1 . . . 1 . . . Repair Station Hacks 10 | . . . . . . . . . . . 4 . 4 . 2 . Scan Component 8 | . . . . . . . . . . . 3 . 3 . 2 . Repair 2 | . . . . . . . . . . . 1 . 1 . . . Recycling Unit Hacks . | . . . . . . . . . . . . . . . . . Scanalyzer 7 | . . . . . 1 . . . 2 . . . 2 . 2 . Insert Component 1 | . . . . . . . . . . . . . 1 . . . Retrieve Study 6 | . . . . . 1 . . . 2 . . . 1 . 2 . Garrison Access Hacks 6 | . . . . . 1 . 1 . 1 . 1 . 1 . 1 . Unlock Access 5 | . . . . . 1 . 1 . 1 . 1 . 1 . . . Seal Access 1 | . . . . . . . . . . . . . . . 1 . Unauthorized Hacks 13 | . 8 . . . 4 . . . . . . . 1 . . . Terminals 12 | . 8 . . . 4 . . . . . . . . . . . Botnet 5 | . 3 . . . 2 . . . . . . . . . . . Skim 7 | . 5 . . . 2 . . . . . . . . . . . Fabricators 1 | . . . . . . . . . . . . . 1 . . . Prioritize 1 | . . . . . . . . . . . . . 1 . . . Repair Stations . | . . . . . . . . . . . . . . . . . Recycling Units . | . . . . . . . . . . . . . . . . . Scanalyzers . | . . . . . . . . . . . . . . . . . Garrison Access . | . . . . . . . . . . . . . . . . . Data Cores Recovered 2 | . . . . . . . . . . . . . 1 . 1 . Used . | . . . . . . . . . . . . . . . . . Hacking Detections 43 | . 5 . . . . 4 1 1 5 1 2 4 6 2 6 6 Full Trace Events 10 | . 1 . . . . 1 . . . 1 1 . 1 . 4 1 Feedback Events . | . . . . . . . . . . . . . . . . . Feedback Blocked . | . . . . . . . . . . . . . . . . . Robot Schematics Acquired . | . . . . . . . . . . . . . . . . . Robots Built 3 | . . . . . . . . . 3 . . . . . . . Authchips . | . . . . . . . . . . . . . . . . . Time 49 | . . . . . . . . . 49 . . . . . . . Total Robot Build Rating 6 | . . . . . . . . . 6 . . . . . . . Part Schematics Acquired . | . . . . . . . . . . . . . . . . . Parts Built 1 | . . . . . . . . . . . . . 1 . . . Authchips . | . . . . . . . . . . . . . . . . . Time 204 | . . . . . . . . . . . . . 204 . . . Total Part Build Rating 8 | . . . . . . . . . . . . . 8 . . . Part Studies Acquired 6 | . . . . . 1 . . . 2 . . . 1 . 2 . Parts Repaired 2 | . . . . . . . . . . . 1 . 1 . . . Time 125 | . . . . . . . . . . . 39 . 86 . . . Parts Recycled . | . . . . . . . . . . . . . . . . . Recycled Matter . | . . . . . . . . . . . . . . . . . Retrieved Matter . | . . . . . . . . . . . . . . . . . Retrieved Components . | . . . . . . . . . . . . . . . . . Parts Scanalyzed 1 | . . . . . . . . . . . . . 1 . . . Part Schematics Acquired . | . . . . . . . . . . . . . . . . . Parts Damaged . | . . . . . . . . . . . . . . . . . Bothacking | -11 -10 -10 -10 -9 -8 -8 -7 -7 -7 -7 -6 -6 -6 -6 -5 -5 ------------ Run | Yrd Mat Min Exi Min Mat Gar Fac Gar Fac Gar Fac Gar Fac Gar Fac Ext Used RIF Installer 5 | . . . . . . 1 . 1 . 1 . 1 . 1 . . Hotswap 1 | . . . . . . . . . . . . 1 . . . . Threat Obfuscator 1 | . . . . . . . . 1 . . . . . . . . Structural Interface 1 | . . . . . . . . . . 1 . . . . . . Program Shield 1 | . . . . . . . . . . . . . . 1 . . Robots Hacked 6 | . . . . . . . . . . . . . . 1 . 5 Non-combat 4 | . . . . . . . . . . . . . . . . 4 Combat 2 | . . . . . . . . . . . . . . 1 . 1 Robot Hacks Applied 6 | . . . . . . . . . . . . . . 1 . 5 parse_system 2 | . . . . . . . . . . . . . . 1 . 1 no_distress 2 | . . . . . . . . . . . . . . . . 2 find_recycling 1 | . . . . . . . . . . . . . . . . 1 formatsys_high 1 | . . . . . . . . . . . . . . . . 1 Relay Couplers Released 43 | . . . . . . 7 . 15 . 5 . 3 . 13 . . Machine Destruction 36 | . . . . . . 7 . 11 . 5 . . . 13 . . Programmers 7 | . . . . . . . . 4 . . . 3 . . . . Attached 2 | . . . . . . . . . . . . . . 1 . 1 Fabnet Peak Effective % . | . . . . . . . . . . . . . . . . . Robots Rewired 28 | . . . . . . . . 9 . . . . . 9 . 10 Allies Hacked 1 | . . . . . . . . . . 1 . . . . . . Hacks Repelled . | . . . . . . . . . . . . . . . . . Allies | -11 -10 -10 -10 -9 -8 -8 -7 -7 -7 -7 -6 -6 -6 -6 -5 -5 -------- Run | Yrd Mat Min Exi Min Mat Gar Fac Gar Fac Gar Fac Gar Fac Gar Fac Ext Total Allies 44 | . . . . 3 . 2 . 9 3 2 . 1 . 9 . 15 Largest Group 9 | . . . . 3 3 3 2 8 6 2 . 1 1 9 9 8 Highest-Rated Group 286 | . . . . 40 40 51 51 186 150 190 . 46 46 286 286 250 Highest-Rated Ally 95 | . . . . 16 16 31 31 40 40 95 . 46 46 85 85 47 Total Orders 17 | . . . . . . 3 . . . . . . . 9 . 5 STAY 8 | . . . . . . 2 . . . . . . . 3 . 3 FOLLOW 7 | . . . . . . 1 . . . . . . . 4 . 2 EXPLORE 1 | . . . . . . . . . . . . . . 1 . . RETURN 1 | . . . . . . . . . . . . . . 1 . . Ally Attacks 345 | . . . . 3 11 46 27 54 30 2 . 5 11 14 37 105 Total Damage 6790 | . . . . 34 95 506 344 980 661 49 . 137 279 831 1070 1804 Kills 66 | . . . . . 2 6 2 10 8 . . 2 3 3 7 23 Allies Corrupted 2 | . . . . . . . . . . 2 . . . . . . Allies Melted . | . . . . . . . . . . . . . . . . . Intel | -11 -10 -10 -10 -9 -8 -8 -7 -7 -7 -7 -6 -6 -6 -6 -5 -5 ------- Run | Yrd Mat Min Exi Min Mat Gar Fac Gar Fac Gar Fac Gar Fac Gar Fac Ext Active Infowar (turns) 3663 | 51 1334 1132 353 786 7 . . . . . . . . . . . Sensors 1 | . . . . 1 . . . . . . . . . . . . Seismic 3662 | 51 1334 1132 353 785 7 . . . . . . . . . . . Robot Analysis Total 2 | . 2 . . . . . . . . . . . . . . . Derelict Logs Recovered 4 | . . 2 . 2 . . . . . . . . . . . . Drone Launches 2 | . . . . . . . . . . . . . . 2 . . Drone Recoveries 1 | . . . . . . . . . . . . . . 1 . . Exploration | -11 -10 -10 -10 -9 -8 -8 -7 -7 -7 -7 -6 -6 -6 -6 -5 -5 ------------- Run | Yrd Mat Min Exi Min Mat Gar Fac Gar Fac Gar Fac Gar Fac Gar Fac Ext Turns Passed 24511 | 109 1334 1132 353 786 290 1510 899 1232 1227 2490 356 1129 3816 3414 1782 2652 Spaces Moved 11707 | 61 547 632 220 484 156 765 497 505 649 1287 170 547 1807 1527 919 934 Core 29 | 2 . . . . . . . . . . . . . . . 27 Treads 11678 | 59 547 632 220 484 156 765 497 505 649 1287 170 547 1807 1527 919 907 Legs . | . . . . . . . . . . . . . . . . . Wheels . | . . . . . . . . . . . . . . . . . Hover . | . . . . . . . . . . . . . . . . . Flight . | . . . . . . . . . . . . . . . . . Fastest Speed 50 | 50 160 160 160 160 160 160 160 160 160 160 160 160 160 160 160 50 Average Speed 164 | 156 160 160 160 160 160 160 160 160 160 160 160 160 160 168 160 207 Slowest Speed 245 | 160 160 160 160 160 160 160 160 160 160 160 160 160 240 240 160 245 Overloaded Moves . | . . . . . . . . . . . . . . . . . Propulsion Burnouts . | . . . . . . . . . . . . . . . . . Robots Hopped 1 | . . . . . . . 1 . . . . . . . . . Potential Cave-ins 8 | . . . . . . . . . . . . . . . . 8 Cave-ins Triggered . | . . . . . . . . . . . . . . . . . Exploration Rate (%) 54 | 4 95 93 61 88 17 70 16 54 20 90 5 72 49 94 21 71 Regions Visited 16 Branch Regions 4 Pre-discovered Areas 3 | . . 1 1 1 . . . . . . . . . . . . Known Exits Taken 5 | . . . . . 1 . 1 . 1 . 1 . 1 . . . Unknown Exits Taken 6 | 1 1 1 1 1 . . . . . . . . . . 1 . Scrap Searched 3 | . . 1 . 2 . . . . . . . . . . . . Spaces Dug 25 | . . . . . . . . 1 . . . . 13 . 4 7 Terrain Destroyed 355 | . 5 44 . . . 2 14 5 11 9 . 1 102 8 125 29 Melee 20 | . . . . . . . . 1 . . . . 12 . 4 3 Projectile 64 | . . . . . . 2 1 3 11 7 . 1 17 . 3 19 AOE 241 | . 5 44 . . . . 13 . . . . . 61 . 118 . Terrain Rammed . | . . . . . . . . . . . . . . . . . Walls Destroyed . | . . . . . . . . . . . . . . . . . Machines Disabled . | . . . . . . . . . . . . . . . . . Actions | -11 -10 -10 -10 -9 -8 -8 -7 -7 -7 -7 -6 -6 -6 -6 -5 -5 --------- Run | Yrd Mat Min Exi Min Mat Gar Fac Gar Fac Gar Fac Gar Fac Gar Fac Ext Total 15584 | 69 917 712 222 490 186 944 556 840 759 1611 254 749 2504 2178 1143 1450 Wait 2163 | . 298 45 . . 8 68 16 133 59 158 82 147 446 359 113 231 Move 11692 | 61 546 631 219 483 156 763 494 504 649 1286 169 546 1807 1526 918 934 Hop 1 | . . . . . . . 1 . . . . . . . . . Pick Up 130 | . 8 5 1 2 6 10 5 4 2 23 . 3 25 21 10 5 Fast Attach 57 | 7 . . . . 1 2 4 . . 8 1 . 10 8 3 13 Attach 44 | . 1 . . . 4 1 2 . . 1 2 1 8 10 3 11 Detach 13 | . . . . . . 1 . . . 1 . . 4 5 . 2 Swap 187 | . 6 4 . 2 4 9 6 18 11 11 . 7 39 28 20 22 Drop 153 | . 2 . 2 . 2 19 8 11 6 35 . 2 31 22 12 1 Fire 730 | 1 55 27 . 3 5 70 20 38 31 72 . 34 108 113 48 105 Melee 101 | . . . . . . 1 . 9 . 15 . 7 17 . 13 39 Ram 9 | . . . . . . . . . . . . . . . . 9 Kick . | . . . . . . . . . . . . . . . . . Crush 34 | . 1 . . . . . . . 1 . . . 9 16 3 4 Escape Stasis 21 | . . . . . . . . 1 . . . . . 6 . 14 Rewire 249 | . . . . . . . . 122 . 1 . 2 . 64 . 60 Trap . | . . . . . . . . . . . . . . . . . Miscellaneous . | . . . . . . . . . . . . . . . . . Route ------- -11/Scrapyard -10/Materials (discovered 6 exits: *Mat x3 / [*Min x2] / Sub) -10/Mines (discovered 4 exits: *Mat x2 / *Exi / *Sub) -10/Exiles -9/Mines -8/Materials (discovered 2 exits: Fac / Gar) -8/Garrison (discovered 3 exits: *Fac x3) -7/Factory (discovered 2 exits: *Fac / Gar) -7/Garrison (discovered 3 exits: *Fac x3) -7/Factory (discovered 4 exits: *Fac / Low x2 / Gar) -7/Garrison (discovered 3 exits: *Fac x3) -6/Factory -6/Garrison (discovered 3 exits: *Fac x3) -6/Factory (discovered 3 exits: *Fac / [*Low] / Gar) -6/Garrison (discovered 3 exits: *Fac x3) -5/Factory -5/Extension History --------- Turn | Location | Event 13 | -11/Scrapyard | Discovered new exit (range 16) 110 | -11/Scrapyard | Entered Materials 298 | -10/Materials | Destroyed 8 combat bots 316 | -10/Materials | Build established: Mutant 368 | -10/Materials | Discovered new exit (range 13) 601 | -10/Materials | Discovered new exit (range 7) 697 | -10/Materials | Discovered new exit (range 10) 784 | -10/Materials | Discovered new exit (range 13) 885 | -10/Materials | Discovered new exit (range 9) 1026 | -10/Materials | Learned Storage terminal intel 1094 | -10/Materials | Learned Storage security intel 1153 | -10/Materials | Learned 2 Mines zone layouts 1244 | -10/Materials | Identified exit to Subcaves 1273 | -10/Materials | Identified exit to Materials 1313 | -10/Materials | Learned Storage trap positions 1361 | -10/Materials | Learned Storage trap positions 1444 | -10/Materials | Entered Mines 1518 | -10/Mines | Learned Materials emergency access door positions 1774 | -10/Mines | Discovered exit to Subcaves (range 6) 1791 | -10/Mines | Learned location of Zion (-6) 1854 | -10/Mines | Deemed a non-threat by the Exiles lab entrance 1855 | -10/Mines | Discovered new exit (range 5) 2304 | -10/Mines | A weapon hastily lodged in a ceiling crevice suddenly fell to the ground 2576 | -10/Mines | Entered Exiles 2616 | -10/Exiles | Met 8R-AWN 2639 | -10/Exiles | Met EX-HEX 2696 | -10/Exiles | Met EX-BIN 2716 | -10/Exiles | Aligned with FarCom system 2717 | -10/Exiles | Given EX-Vault access code 2757 | -10/Exiles | Opened EX-Vault 2765 | -10/Exiles | Found YOLO Cannon 2799 | -10/Exiles | Warned to stay clear of 0b10 Research branches 2849 | -10/Exiles | Met EX-DEC 2908 | -10/Exiles | Discovered new exit (range 10) 2929 | -10/Exiles | Left Exiles lab with YOLO Cannon 2929 | -10/Exiles | Entered Mines 2937 | -9/Mines | Assisted by bots powering up and referring to "LRC-V3" 2963 | -9/Mines | Learned location of Storage (-8) 3235 | -9/Mines | Found a damaged Exp. Sensor Array with a note attached 3239 | -9/Mines | Found Prototype Device 3240 | -9/Mines | Identified Exp. Sensor Array 3427 | -9/Mines | Learned location of 1 exit from Materials 3435 | -9/Mines | Discovered new exit (range 9) 3715 | -9/Mines | Entered Materials 3715 | -8/Materials | Accompanied by 3 allies 3715 | -8/Materials | Evolved 4 slots: Propulsion x2, Weapon x2 3716 | -8/Materials | Identified exit to Factory 3952 | -8/Materials | Garrison activated, responded to threat 4005 | -8/Materials | Identified exit to Garrison 4005 | -8/Materials | Entered Garrison 4005 | -8/Garrison | Accompanied by 3 allies 4026 | -8/Garrison | Build established: Skirmisher 4028 | -8/Garrison | Triggered checkpoint 4225 | -8/Garrison | Triggered checkpoint 4253 | -8/Garrison | Garrison Relay disabled 4351 | -8/Garrison | Triggered checkpoint 4386 | -8/Garrison | Triggered checkpoint 4401 | -8/Garrison | Build established: Scavenger-Skirmisher 4476 | -8/Garrison | Discovered exit to Factory (range 10) 4495 | -8/Garrison | Triggered checkpoint 4644 | -8/Garrison | Triggered checkpoint 4701 | -8/Garrison | Triggered checkpoint 4788 | -8/Garrison | Discovered exit to Factory (range 10) 4822 | -8/Garrison | Triggered checkpoint 4866 | -8/Garrison | Triggered checkpoint 4994 | -8/Garrison | Rescued a captive Derelict 4995 | -8/Garrison | Rescued a captive Derelict 5172 | -8/Garrison | Installed Relay Interface Framework 5321 | -8/Garrison | Discovered exit to Factory (range 8) 5359 | -8/Garrison | Triggered checkpoint 5397 | -8/Garrison | Garrison Relay disabled 5515 | -8/Garrison | Entered Factory 5515 | -7/Factory | Accompanied by 2 allies 5515 | -7/Factory | Evolved 2 slots: Utility x1, Weapon x1 5696 | -7/Factory | Discovered new exit (range 4) 6315 | -7/Factory | First assault squad dispatched 6404 | -7/Factory | Identified exit to Garrison 6414 | -7/Factory | Entered Garrison 6530 | -7/Garrison | Triggered checkpoint 6696 | -7/Garrison | Triggered checkpoint 6850 | -7/Garrison | Garrison Relay disabled 6892 | -7/Garrison | Discovered new exit (range 55) 6892 | -7/Garrison | Discovered new exit (range 65) 6892 | -7/Garrison | Discovered new exit (range 46) 6918 | -7/Garrison | Garrison Relay disabled 7156 | -7/Garrison | Garrison Relay disabled 7212 | -7/Garrison | Triggered checkpoint 7257 | -7/Garrison | Lost 4 allies 7284 | -7/Garrison | Expanded RIF knowledge: Threat Obfuscation 7335 | -7/Garrison | Triggered checkpoint 7438 | -7/Garrison | Triggered checkpoint 7646 | -7/Garrison | Entered Factory 7646 | -7/Factory | Accompanied by 3 allies 7674 | -7/Factory | Identified exit to DSF 7758 | -7/Factory | Fabricated B-36 Bruiser? 8005 | -7/Factory | Discovered new exit (range 16) 8046 | -7/Factory | First assault squad dispatched 8172 | -7/Factory | Lost 4 allies 8472 | -7/Factory | Identified exit to Lower Caves 8873 | -7/Factory | Identified exit to Garrison 8873 | -7/Factory | Entered Garrison 9025 | -7/Garrison | Triggered checkpoint 9046 | -7/Garrison | Found embedded Infiltrators 9443 | -7/Garrison | Build established: Tank 9559 | -7/Garrison | Garrison Relay disabled 9563 | -7/Garrison | Triggered checkpoint 9627 | -7/Garrison | Discovered new exit (range 11) 9918 | -7/Garrison | System corruption reached 10% 9953 | -7/Garrison | Build established: Scavenger-Tank 10009 | -7/Garrison | Triggered checkpoint 10089 | -7/Garrison | Triggered checkpoint 10199 | -7/Garrison | Triggered checkpoint 10222 | -7/Garrison | Discovered new exit (range 15) 10249 | -7/Garrison | Expanded RIF knowledge: Structural Interface 10307 | -7/Garrison | Triggered checkpoint 10359 | -7/Garrison | Triggered checkpoint 10440 | -7/Garrison | Discovered new exit (range 12) 11363 | -7/Garrison | Entered Factory 11363 | -6/Factory | Evolved 2 slots: Utility x1, Weapon x1 11469 | -6/Factory | Identified exit to Garrison 11561 | -6/Factory | Repaired Broken KE Penetrator 11658 | -6/Factory | Build established: Scavenger-Executioner 11719 | -6/Factory | Entered Garrison 11756 | -6/Garrison | Expanded RIF knowledge: Hotswap 11893 | -6/Garrison | Triggered checkpoint 11917 | -6/Garrison | Discovered new exit (range 48) 11917 | -6/Garrison | Discovered new exit (range 64) 11917 | -6/Garrison | Discovered new exit (range 52) 12049 | -6/Garrison | Triggered checkpoint 12060 | -6/Garrison | Triggered checkpoint 12093 | -6/Garrison | Destroyed 8 combat bots 12113 | -6/Garrison | Triggered checkpoint 12190 | -6/Garrison | Learned Factory security intel 12378 | -6/Garrison | Triggered checkpoint 12643 | -6/Garrison | Rescued a captive Derelict 12669 | -6/Garrison | Triggered checkpoint 12848 | -6/Garrison | Entered Factory 12848 | -6/Factory | Accompanied by 1 ally 13198 | -6/Factory | First assault squad dispatched 13420 | -6/Factory | Spotted B-75 Beast 13509 | -6/Factory | Destroyed B-75 Beast 13709 | -6/Factory | Destroyed 9 combat bots 13955 | -6/Factory | Central database locked down 14153 | -6/Factory | Discovered new exit (range 14) 14710 | -6/Factory | Discovered new exit (range 15) 14854 | -6/Factory | Repaired Broken Imp. Heavy Treads 15585 | -6/Factory | Found Prototype Processor 15585 | -6/Factory | Identified Exp. Targeting Computer 15763 | -6/Factory | Fabricated Com. Particle Reactor (x1) 16664 | -6/Factory | Identified exit to Garrison 16664 | -6/Factory | Entered Garrison 16776 | -6/Garrison | Garrison Relay disabled 16808 | -6/Garrison | Triggered checkpoint 16897 | -6/Garrison | Garrison Relay disabled 16993 | -6/Garrison | Triggered checkpoint 17164 | -6/Garrison | Triggered checkpoint 17200 | -6/Garrison | Destroyed 7 combat bots 17229 | -6/Garrison | Garrison Relay disabled 17257 | -6/Garrison | Build established: Executioner 17261 | -6/Garrison | Expanded RIF knowledge: Program Shield 17444 | -6/Garrison | Triggered checkpoint 17456 | -6/Garrison | Triggered checkpoint 17525 | -6/Garrison | Destroyed 10 combat bots 17683 | -6/Garrison | Discovered new exit (range 9) 17699 | -6/Garrison | Spotted B-75 Beast 17769 | -6/Garrison | Core integrity fell below 50% 17795 | -6/Garrison | Lost 4 parts (1p2u1w) 17941 | -6/Garrison | Spotted B-86 Titan 17955 | -6/Garrison | Core integrity fell below 20% 18074 | -6/Garrison | Triggered checkpoint 18364 | -6/Garrison | Triggered checkpoint 18459 | -6/Garrison | Rewired B-75 Beast 18503 | -6/Garrison | Lost 5 parts (1n4w) 18579 | -6/Garrison | Rewired B-75 Beast 18633 | -6/Garrison | Allies destroyed B-75 Beast 18912 | -6/Garrison | Discovered new exit (range 10) 18982 | -6/Garrison | Garrison Relay disabled 19014 | -6/Garrison | Triggered checkpoint 19590 | -6/Garrison | Discovered new exit (range 15) 19676 | -6/Garrison | Destroyed 9 combat bots 20041 | -6/Garrison | Build established: Commander-Executioner 20078 | -6/Garrison | Entered Factory 20078 | -5/Factory | Accompanied by 9 allies 20078 | -5/Factory | Evolved 2 slots: Propulsion x2 20242 | -5/Factory | Garrison activated, responded to threat 20273 | -5/Factory | Lost 3 allies 20370 | -5/Factory | Central database locked down 20378 | -5/Factory | First assault squad dispatched 20759 | -5/Factory | Lost 5 allies 21004 | -5/Factory | Build established: Executioner 21228 | -5/Factory | Destroyed 7 combat bots 21340 | -5/Factory | Cargo convoy interrupted 21853 | -5/Factory | Discovered new exit (range 4) 21860 | -5/Factory | Entered Extension 21888 | -5/Extension | Lost 3 parts (3w) 21917 | -5/Extension | Rescued a captive Derelict 21993 | -5/Extension | Rescued a captive Derelict 22339 | -5/Extension | Build established: Scavenger-Executioner 22460 | -5/Extension | First assault squad dispatched 22554 | -5/Extension | Rescued a captive Derelict 22554 | -5/Extension | Rescued a captive Derelict 22572 | -5/Extension | Lost 3 parts (2n1w) 22892 | -5/Extension | Build established: Commander-Tank 23225 | -5/Extension | Lost 4 allies 23262 | -5/Extension | Spotted B-75 Beast 23391 | -5/Extension | Lost 4 parts (1u3w) 23659 | -5/Extension | Build established: Mutant 23760 | -5/Extension | Disrupted transfer network 24282 | -5/Extension | Build established: Scavenger-Skirmisher 24350 | -5/Extension | Lost 4 allies 24469 | -5/Extension | Core integrity fell below 50% 24476 | -5/Extension | Released all parts (2) 24487 | -5/Extension | Destroyed 8 combat bots 24489 | -5/Extension | Core integrity fell below 20% 24512 | -5/Extension | Destroyed by G-67 Veteran with Plasma Rifle Last Messages --------------- 24488_ Field strength at 1. 24488_ Stasis field depleted. 24490_ Slammed into S-27 Virus. 24491_ Acquired Imp. Treads. 24493_ Slammed into S-27 Virus. 24494_ Imp. Treads broken. 24494_ Destabilizing: Short circuit. 24495_ Acquired KE Penetrator. 24496_ Slammed into S-27 Virus. 24497_ Acquired 12 matter. 24497_ Slammed into S-27 Virus. 24501_ Broken Imp. Heavy Treads destroyed. 24502_ Penetrated by Slug. 24505_ Broken Imp. Treads destroyed. 24505_ Slug penetrates Wall. 24507_ Slug penetrates Door. 24512_ C-30 ARC bursts open, deploying its payload. 24512_ G-67 Veteran unfolds itself. 24512_ G-50 Soldier unfolds itself. Map ----- +----------------------------------------------------+ | ???????????????????????????????? | | ???????????????#???????????????? | | ??????????????#T"#?????????????? | | ############### "####??????????? | | " % * #??????????? | | #"##### #??????????? | | # #???# #??????????? | | # #???# #??????????? | | # #???# ######## #??????????? | | # #???# #??????# #??????????? | | # #???#/######## #??#"##????? | | # #???#[#= # #??# T#????? | | # #???#%#* = # #### ##????? | | #???#!/[! x gh #????? | | " #???#!#% # #????? | | *=#####%#% [ /# #????? | | [%* = =%# h " #????? | | #########################s#????? | | ????????????????????????# #????? | | ????????????????????????# #????? | | ????????????????????????# #????? | | ????????????????????????# #????? | | ????????????????????????# #????? | | ????????????????????????# #????? | | ????????????????????????# #????? | | ????????????????????????#@#????? | | ????????????????????????# #????? | | ????????????????????????# #????? | | ????????????????????????# #????? | | ????????????????????????# #????? | | ????????????????????????# #????? | | ????????????????????????# #????? | | ????????????????????????# #????? | | ????????????????????????# #????? | | ????????????????????????? ?????? | | ????????????????????????? ?????? | | ????????????????????????? ?????? | | ?????????????????????????g?????? | | ?????????????????????????%?????? | | ?????????????????????????g?????? | | ?????????????????????????|?????? | | ???????????????????????????????? | | ???????????????????????????????? | | ???????????????????????????????? | | ???????????????????????????????? | | ???????????????????????????????? | | ???????????????????????????????? | | ???????????????????????????????? | | ???????????????????????????????? | | ???????????????????????????????? | +----------------------------------------------------+ Best States ------------- Heat Dissipation 102 Energy Generation 25 Energy Capacity 310 Matter Stores 300 Matter Capacity 300 Sight Range 16 Terrain Scan Density 10 Utility Shielding 66 Weapon Cycling 30 Evasion (%) 50 Core Analysis 6 Recoil Reduction 6 Kinecelleration 30 Relay Coupler Types 1 Relay Coupler Value 23 Item Schematics ----------------- None Robot Schematics ------------------ None Fabricated ------------ B-36 Bruiser | x3 | -7/Factory | Preloaded Com. Particle Reactor | x1 | -6/Factory | Preloaded Repaired ---------- KE Penetrator | 30% | -6/Factory | Broken Imp. Heavy Treads | 31% | -6/Factory | Broken Studied --------- Lgt. Assault Rifle | -8/Materials | Hacked Flak Gun | -7/Factory | Hacked Gauss Rifle | -7/Factory | Hacked Coil Gun | -6/Factory | Hacked Hyp. Gauss Rifle | -5/Factory | Hacked Hvy. Flak Cannon | -5/Factory | Hacked Alien Tech Used ----------------- None Achievements -------------- Assimilation Complete Deadly Precision Drive-By Gun Specialist Join The Dark Side Let Me Out Of Here Mindtrick You Will Be Upgraded Challenges ------------ None Game ------ Seed ExplosiveStrikeProcessor Manual? 0 Play Time 02:47:40 Cumulative 130.5 hours Start 2026.09.12 @ 19:38:41 End 2026.09.17 @ 21:17:36 Sessions 5 Manual Loads 0 Difficulty Rogue Special Mode None Game No. 60 Rogue 60 Adventurer 0 Explorer 0 Win Type - Total 6 Types 1/1/2/0/0/0/0/1/0/1 Lore% 74 Gallery% 66 Achievement% 55 Wizard Run 0 Options --------- Layout 1 ASCII 0 Keyboard 1 Movement Arrows Keybinds 0 Fullscreen 1 Font 24/Smallcaps Map View 50x35 Zoom Use 0% Tactical HUD 1 Map Filters NONE Filters NONE Steam 1 RUN: 97be07b0-c543-4f87-b0ff-2726a1d85e35